Cogmind - Beta 12 *** ADVENTURER MODE // 2023.09.01 @ 01:51:28 Player: Fira Result: Self-destructed Performance ------------- Evolutions (3) 1500 Regions Visited (7) 1400 Robots Destroyed (37) 185 Value Destroyed (1274) 1274 Prototype IDs (1) 20 Alien Tech Used (0) 0 Bonus (0) 0 TOTAL SCORE: 4379 Bonus ------- None Cogmind --------- Core Integrity 465/700 Matter 300/300 Energy 172/250 System Corruption 2% Temperature Cool (24) Movement Core (350) Ox6 Location -7/Lower Caves Parts ------- > --- POWER (3) -------- (None) > --- PROPULSION (3) --- (None) > --- UTILITY (4) ------ Medium Battery Improved Targeting Computer Advanced Targeting Computer > --- WEAPON (3) ------- Heavy Laser Cooled Particle Cannon Proton Missile Launcher > --- INVENTORY (5) ---- Compact Battery (200) Gauss Rifle Peak State ------------ > --- POWER ------------ Light Deuterium Engine Light Nuclear Core > --- PROPULSION ------- Improved Carbon-fiber Leg Improved Carbon-fiber Leg Improved Carbon-fiber Leg > --- UTILITY ---------- Improved Heat Sink Medium Battery Improved Signal Interpreter Improved Targeting Computer > --- WEAPON ----------- Cooled Particle Cannon Heavy Assault Rifle Gauss Rifle > --- INVENTORY -------- (None) [Rating: 38] Favorites ----------- Power Light Nuclear Core Engine Light Ion Engine Power Core Light Nuclear Core Propulsion Improved Carbon-fiber Leg Leg Improved Carbon-fiber Leg Wheel Wheel Flight Unit VTOL Module Utility Medium Battery Device Improved Heat Sink Storage Medium Battery Processor Improved Targeting Computer Protection Improved Light Armor Plating Weapon Particle Gun Energy Gun Particle Gun Energy Cannon Cooled Particle Cannon Ballistic Gun Heavy Assault Rifle Launcher Proton Missile Launcher Build | -11 -10 -10 -10 -9 -8 -7 -7 ------- Run | Jun Mat Min Exi Min Mat Fac Low Slots Evolved 6 | . . . . . 4 2 . Power 2 | . . . . . 1 1 . Propulsion 1 | . . . . . 1 . . Utility 2 | . . . . . 1 1 . Weapon 1 | . . . . . 1 . . Parts Attached 34 | 5 2 . . 2 18 5 2 Power 5 | 1 . . . . 3 1 . Engine 3 | 1 . . . . 1 1 . Core 2 | . . . . . 2 . . Reactor . | . . . . . . . . Propulsion 8 | 2 . . . . 6 . . Treads . | . . . . . . . . Leg 3 | . . . . . 3 . . Wheel 2 | 2 . . . . . . . Hover . | . . . . . . . . Flight 3 | . . . . . 3 . . Utility 9 | . 2 . . . 5 2 . Device 3 | . 1 . . . 2 . . Storage 2 | . 1 . . . 1 . . Processor 3 | . . . . . 1 2 . Hackware . | . . . . . . . . Protection 1 | . . . . . 1 . . Artifact . | . . . . . . . . Weapon 12 | 2 . . . 2 4 2 2 Energy Gun 8 | 2 . . . 2 3 . 1 Energy Cannon 1 | . . . . . . 1 . Ballistic Gun 2 | . . . . . 1 1 . Ballistic Cannon . | . . . . . . . . Launcher 1 | . . . . . . . 1 Special Weapon . | . . . . . . . . Impact Weapon . | . . . . . . . . Slashing Weapon . | . . . . . . . . Piercing Weapon . | . . . . . . . . Special Melee Weapon . | . . . . . . . . Unidentified Prototypes 1 | . . . . . . 1 . Parts Lost 12 | . . . . . 3 3 6 Power 4 | . . . . . 1 1 2 Propulsion 3 | . . . . . . 1 2 Utility 3 | . . . . . 2 . 1 Weapon 2 | . . . . . . 1 1 Highest Loss Streak 3 | . . . . . 1 2 3 To Critical Strikes . | . . . . . . . . Average Slot Usage (%) 88 | . 85 100 100 100 92 85 72 Engine 7 | . 14 14 14 14 7 2 6 Core 5 | . . . . . 6 11 4 Leg 13 | . . . . . 22 21 6 Wheel 7 | . 28 28 28 28 . . . Flight 1 | . . . . . 4 . . Device 8 | . 1 14 14 14 8 7 6 Storage 9 | . 13 14 14 14 9 7 7 Processor 6 | . . . . . 4 12 15 Protection 1 | . . . . . 4 . . Energy Gun 17 | . 28 28 28 28 22 7 6 Energy Cannon 2 | . . . . . . 3 7 Ballistic Gun 4 | . . . . . 4 9 3 Naked Turns . | . . . . . . . . Heaviest Build 31 | 5 8 8 8 12 25 27 31 Greatest Support 54 | 20 20 20 10 10 54 54 36 Greatest Overweight (x) 8 | . . . . 1 1 . 8 Average Overweight (x) . | . . . . . . . 1 Largest Inventory Capacity 5 | 5 5 5 5 5 5 5 5 Average Capacity 5 | 5 5 5 5 5 5 5 5 Most Carried 5 | 3 3 2 3 4 5 2 2 Average Carried . | . 2 2 2 2 . . 1 Final Capacity 5 | 5 5 5 5 5 5 5 5 Final Carried 2 | 2 2 2 2 2 . . 2 Class Distribution -------------------- 42% | Mutant 31% | Gunner 13% | Scavenger-Gunner 13% | Tank Dominant Class ---------------- Mutant | -10/Materials Mutant | -10/Mines Mutant | -10/Exiles Mutant | -9/Mines Scavenger-Gunner | -8/Materials Gunner | -7/Factory Mutant | -7/Lower Caves Resources | -11 -10 -10 -10 -9 -8 -7 -7 ----------- Run | Jun Mat Min Exi Min Mat Fac Low Matter Collected 709 | 250 20 . . 20 210 113 96 Remotely . | . . . . . . . . Salvage Created 1363 | 50 43 . . . 625 238 407 Parts 59 | 2 1 . . . 32 17 7 Haulers Intercepted . | . . . . . . . . Recyclers Shooed 1 | . . . . . . 1 . Parts Field Recycled . | . . . . . . . . Retrieved Matter . | . . . . . . . . Parts Self-Destructed 7 | . . . . . . . 7 Prevented 3 | . . . . . . . 3 Kills | -11 -10 -10 -10 -9 -8 -7 -7 ------- Run | Jun Mat Min Exi Min Mat Fac Low Combat Hostiles Destroyed 31 | 1 1 . . . 17 5 7 Guns 25 | 1 1 . . . 17 3 3 Cannons 6 | . . . . . . 2 4 Classes Destroyed 8 | 1 . . . . 5 2 . Worker 1 | . . . . . 1 . . Builder 1 | . . . . . 1 . . Tunneler 2 | . . . . . 1 1 . Watcher 2 | . . . . . . 2 . Swarmer 9 | . . . . . 6 3 . Grunt 18 | 1 1 . . . 9 . 7 Sentry 3 | . . . . . 2 1 . Programmer 1 | . . . . . . 1 . Best Kill Streak 6 | 1 1 . . . 6 3 2 Combat Bots Only 3 | 1 1 . . . 3 3 2 Max Kills in Single Turn 3 | 1 1 . . . 3 1 1 Gunslinging 1 | . . . . . 1 . . Exploded . | . . . . . . . . Melee . | . . . . . . . . Uniques/NPCs Destroyed . | . . . . . . . . Combat | -11 -10 -10 -10 -9 -8 -7 -7 -------- Run | Jun Mat Min Exi Min Mat Fac Low Damage Taken 1850 | 16 101 7 . . 647 531 548 Core 326 | . 41 . . . 50 31 204 Absorbed by Shields . | . . . . . . . . Core Remaining (%) 91 | 100 . . . 83 90 . . Volleys Fired 85 | 2 10 . . . 26 20 27 Largest 3 | 2 2 . . . 3 3 3 Hottest 193 | 80 80 . . . 193 151 99 Shots Fired 201 | 4 20 . . . 75 51 51 Gun 159 | 4 20 . . . 75 36 24 Cannon 36 | . . . . . . 15 21 Launcher 6 | . . . . . . . 6 Special . | . . . . . . . . Kinetic 39 | . . . . . 5 23 11 Thermal 152 | 4 20 . . . 66 28 34 Explosive . | . . . . . . . . Electromagnetic 10 | . . . . . 4 . 6 Robot Hit Streak 20 | 2 15 . . . 18 14 20 Robot Miss Streak 2 | 1 2 . . . 2 2 1 Penetration Max 1 | . . . . . . 1 . Secondary Targets 5 | . . . . . 5 . . Max Gunslinging Chain 1 | . . . . . 1 . . Shots Hit Robots 158 | 2 17 . . . 61 38 40 Core Hits 67 | 2 4 . . . 32 13 16 Critical Kills . | . . . . . . . . Critical Parts Destroyed . | . . . . . . . . Critical Strikes 3 | . . . . . 2 . 1 Burn 3 | . . . . . 2 . 1 Melee Attacks . | . . . . . . . . Impact . | . . . . . . . . Slashing . | . . . . . . . . Piercing . | . . . . . . . . Sneak Attacks . | . . . . . . . . Combat Hostiles . | . . . . . . . . Follow-up Attacks . | . . . . . . . . Damage Inflicted 3411 | 24 184 15 . . 1199 797 1192 Guns 2048 | 24 184 . . . 959 453 428 Cannons 780 | . . . . . . 323 457 Explosions 547 | . . . . . 240 . 307 Melee . | . . . . . . . . Ramming 36 | . . 15 . . . 21 . Kinetic 526 | . . . . . 30 319 177 Thermal 2244 | 24 184 . . . 871 457 708 Explosive 240 | . . . . . 240 . . Electromagnetic 365 | . . . . . 58 . 307 Impact . | . . . . . . . . Slashing . | . . . . . . . . Piercing . | . . . . . . . . Highest Corruption 2 | . . . . . 1 2 2 Average Corruption 1 | . . . . . 1 1 2 Corruption Purged . | . . . . . . . . Corruption Blocked . | . . . . . . . . Effects 9 | . . . . . . 2 7 Message Errors 3 | . . . . . . . 3 Matter Fused 2 | . . . . . . . 2 Heat Flow Errors 1 | . . . . . . . 1 Energy Discharges 2 | . . . . . . 2 . Weapon Failures 1 | . . . . . . . 1 Overload Shots . | . . . . . . . . Overflow Damage 36 | . . . . . . 21 15 Projectiles 36 | . . . . . . 21 15 Explosions . | . . . . . . . . Melee . | . . . . . . . . Knockbacks 1 | . . 1 . . . . . Impact 1 | . . 1 . . . . . Kinetic . | . . . . . . . . Secondary . | . . . . . . . . Self-Inflicted Damage 7 | . . 7 . . . . . Shots . | . . . . . . . . Rammed 1 | . . 1 . . . . . Targets Rammed 4 | . . 1 . . . 3 . Kicked 3 | . . . . . . 3 . Crushed . | . . . . . . . . Highest Temperature 402 | 48 238 . . . 402 96 133 Average Temperature 137 | 28 131 . . . 186 31 18 Received Heat Transfer 939 | 12 78 . . . 378 48 423 Effects 12 | . . . . . 12 . . Shutdowns 3 | . . . . . 3 . . Interference 8 | . . . . . 8 . . Matter Decay 1 | . . . . . 1 . . Siege Activations . | . . . . . . . . Robots Corrupted . | . . . . . . . . Combat Hostiles . | . . . . . . . . Parts Fried 1 | . . . . . . . 1 Impact Corruptions . | . . . . . . . . Robots Melted . | . . . . . . . . Combat Hostiles . | . . . . . . . . Parts Melted 12 | . 1 . . . 7 1 3 Heat Transferred 4545 | 50 425 . . . 2183 703 1184 Parts Sabotaged . | . . . . . . . . Parts Stolen . | . . . . . . . . Parts Stripped . | . . . . . . . . Power Chain Reactions . | . . . . . . . . Missiles Intercepted . | . . . . . . . . Alert | -11 -10 -10 -10 -9 -8 -7 -7 ------- Run | Jun Mat Min Exi Min Mat Fac Low Peak Influence 270 | 20 46 14 . . 270 167 . Initial 40 | . 11 14 . . . 40 . Average 58 | 3 35 14 . . 89 59 . Maximum Alert Level 1 | . . . . . 1 . . Low Security (%) 97 | 100 100 100 . 100 94 100 . Level 1 2 | . . . . . 5 . . Level 2 . | . . . . . . . . Level 3 . | . . . . . . . . Level 4 . | . . . . . . . . Level 5 . | . . . . . . . . High Security . | . . . . . . . . Max Security . | . . . . . . . . Squads Dispatched 3 | . . . . . 2 1 . Investigation 1 | . . . . . 1 . . Extermination 1 | . . . . . . 1 . Reinforcement 1 | . . . . . 1 . . Assault . | . . . . . . . . Garrison . | . . . . . . . . Intercept . | . . . . . . . . Searches Triggered . | . . . . . . . . Construction Impeded . | . . . . . . . . Haulers Reinforced . | . . . . . . . . Active Scanning Responses . | . . . . . . . . Cargo Convoy Interrupts . | . . . . . . . . Stealth | -11 -10 -10 -10 -9 -8 -7 -7 --------- Run | Jun Mat Min Exi Min Mat Fac Low Distress Signals . | . . . . . . . . Communications Jammed . | . . . . . . . . Distress Signals . | . . . . . . . . Times Spotted 47 | 1 5 . . . 17 9 15 Peak Tracking Total 6 | 1 2 . . . 6 4 4 Tactical Retreats 4 | . 1 . . . 1 . 2 Traps | -11 -10 -10 -10 -9 -8 -7 -7 ------- Run | Jun Mat Min Exi Min Mat Fac Low Traps Triggered 2 | . . . . . 2 . . Indirectly . | . . . . . . . . Trap Hack Attempts . | . . . . . . . . Triggered . | . . . . . . . . Disarmed . | . . . . . . . . Reprogrammed . | . . . . . . . . Reused . | . . . . . . . . Traps Extracted . | . . . . . . . . Installed . | . . . . . . . . Triggered . | . . . . . . . . Machines | -11 -10 -10 -10 -9 -8 -7 -7 ---------- Run | Jun Mat Min Exi Min Mat Fac Low Machines Disabled 3 | . . . . . 1 2 . Max in Single Turn 1 | . . . . . 1 1 . Machines Repaired . | . . . . . . . . Machines Sabotaged . | . . . . . . . . Overloaded Fab Kills . | . . . . . . . . Hacking | -11 -10 -10 -10 -9 -8 -7 -7 --------- Run | Jun Mat Min Exi Min Mat Fac Low Machines Accessed 6 | . 2 . 1 . 2 1 . Terminals 4 | . 1 . . . 2 1 . Fabricators . | . . . . . . . . Repair Stations . | . . . . . . . . Recycling Units 1 | . 1 . . . . . . Scanalyzers . | . . . . . . . . Garrison Access . | . . . . . . . . Total Hacks 16 | . 5 . 2 . 8 1 . Successful 10 | . 1 . 2 . 6 1 . Failed 6 | . 4 . . . 2 . . Catastrophic 1 | . 1 . . . . . . Database Lockouts . | . . . . . . . . Manual . | . . . . . . . . Terminals 11 | . 2 . . . 8 1 . Fabricators . | . . . . . . . . Repair Stations . | . . . . . . . . Recycling Units 3 | . 3 . . . . . . Scanalyzers . | . . . . . . . . Garrison Access . | . . . . . . . . Terminal Hacks 9 | . . . 2 . 6 1 . Record 3 | . . . 2 . 1 . . Open DSF 1 | . . . . . . 1 . Emergency Access Points 1 | . . . . . 1 . . Alert Level 1 | . . . . . 1 . . Dispatch Records 1 | . . . . . 1 . . Reinforcement Status 1 | . . . . . 1 . . Hauler Manifests 1 | . . . . . 1 . . Fabricator Hacks . | . . . . . . . . Repair Station Hacks . | . . . . . . . . Recycling Unit Hacks 1 | . 1 . . . . . . Report Inventory 1 | . 1 . . . . . . Scanalyzer . | . . . . . . . . Garrison Access Hacks . | . . . . . . . . Unauthorized Hacks . | . . . . . . . . Terminals . | . . . . . . . . Fabricators . | . . . . . . . . Repair Stations . | . . . . . . . . Recycling Units . | . . . . . . . . Scanalyzers . | . . . . . . . . Garrison Access . | . . . . . . . . Data Cores Recovered . | . . . . . . . . Used . | . . . . . . . . Hacking Detections 2 | . 2 . . . . . . Full Trace Events . | . . . . . . . . Feedback Events . | . . . . . . . . Feedback Blocked . | . . . . . . . . Robot Schematics Acquired . | . . . . . . . . Robots Built . | . . . . . . . . Authchips . | . . . . . . . . Time . | . . . . . . . . Total Robot Build Rating . | . . . . . . . . Part Schematics Acquired . | . . . . . . . . Parts Built . | . . . . . . . . Authchips . | . . . . . . . . Time . | . . . . . . . . Total Part Build Rating . | . . . . . . . . Parts Repaired . | . . . . . . . . Time . | . . . . . . . . Parts Recycled . | . . . . . . . . Recycled Matter . | . . . . . . . . Retrieved Matter . | . . . . . . . . Retrieved Components . | . . . . . . . . Parts Scanalyzed . | . . . . . . . . Part Schematics Acquired . | . . . . . . . . Parts Damaged . | . . . . . . . . Bothacking | -11 -10 -10 -10 -9 -8 -7 -7 ------------ Run | Jun Mat Min Exi Min Mat Fac Low Used RIF Installer . | . . . . . . . . Robots Hacked . | . . . . . . . . Non-combat . | . . . . . . . . Combat . | . . . . . . . . Robot Hacks Applied . | . . . . . . . . Relay Couplers Released . | . . . . . . . . Fabnet Peak Effective % . | . . . . . . . . Robots Rewired . | . . . . . . . . Allies Hacked . | . . . . . . . . Hacks Repelled . | . . . . . . . . Allies | -11 -10 -10 -10 -9 -8 -7 -7 -------- Run | Jun Mat Min Exi Min Mat Fac Low Total Allies 2 | . . . . 2 . . . Largest Group 2 | . . . . 2 2 . . Highest-Rated Group 41 | . . . . 41 41 . . Highest-Rated Ally 31 | . . . . 31 31 . . Total Orders . | . . . . . . . . Ally Attacks 4 | . . . . . 4 . . Total Damage 40 | . . . . . 40 . . Kills . | . . . . . . . . Allies Corrupted . | . . . . . . . . Allies Melted . | . . . . . . . . Intel | -11 -10 -10 -10 -9 -8 -7 -7 ------- Run | Jun Mat Min Exi Min Mat Fac Low Robot Analysis Total . | . . . . . . . . Derelict Logs Recovered . | . . . . . . . . Drone Launches . | . . . . . . . . Drone Recoveries . | . . . . . . . . Exploration | -11 -10 -10 -10 -9 -8 -7 -7 ------------- Run | Jun Mat Min Exi Min Mat Fac Low Turns Passed 2720 | 79 179 93 177 254 834 602 502 Spaces Moved 2117 | 86 181 115 220 266 593 438 218 Core 27 | 24 . . . . . . 3 Treads . | . . . . . . . . Legs 1126 | . . . . . 473 438 215 Wheels 859 | 62 181 115 220 266 15 . . Hover . | . . . . . . . . Flight 105 | . . . . . 105 . . Fastest Speed 50 | 50 80 80 80 80 95 120 120 Average Speed 111 | 71 80 80 80 92 117 120 192 Slowest Speed 450 | 80 80 80 80 95 120 120 450 Overloaded Moves . | . . . . . . . . Propulsion Burnouts . | . . . . . . . . Robots Hopped . | . . . . . . . . Cave-ins Triggered . | . . . . . . . . Exploration Rate (%) 28 | 7 25 26 56 42 29 10 35 Regions Visited 7 Branch Regions 4 Pre-discovered Areas 1 | . . . 1 . . . . Known Exits Taken . | . . . . . . . . Unknown Exits Taken 7 | 1 1 1 1 1 1 1 . Scrap Searched 2 | . . . . 1 . . 1 Spaces Dug . | . . . . . . . . Terrain Destroyed 13 | . . . . . 10 2 1 Melee . | . . . . . . . . Projectile 3 | . . . . . . 2 1 AOE 10 | . . . . . 10 . . Terrain Rammed . | . . . . . . . . Walls Destroyed . | . . . . . . . . Machines Disabled . | . . . . . . . . Actions | -11 -10 -10 -10 -9 -8 -7 -7 --------- Run | Jun Mat Min Exi Min Mat Fac Low Total 2303 | 99 194 115 221 274 678 472 250 Wait 16 | . . . . 3 13 . . Move 2110 | 85 180 114 219 265 592 437 218 Hop . | . . . . . . . . Pick Up 37 | 7 2 . 1 2 17 5 3 Fast Attach . | . . . . . . . . Attach 31 | 5 2 . . 2 16 5 1 Detach . | . . . . . . . . Swap 3 | . . . . . 2 . 1 Drop 17 | . . . 1 2 12 2 . Fire 85 | 2 10 . . . 26 20 27 Melee . | . . . . . . . . Ram 1 | . . 1 . . . . . Kick 3 | . . . . . . 3 . Crush . | . . . . . . . . Escape Stasis . | . . . . . . . . Rewire . | . . . . . . . . Trap . | . . . . . . . . Miscellaneous . | . . . . . . . . Route ------- -11/Junkyard -10/Materials (discovered 2 exits: [*Mat] / [*Min]) -10/Mines (discovered 2 exits: [*Mat] / *Exi) -10/Exiles -9/Mines -8/Materials -7/Factory -7/Lower Caves History --------- Turn | Location | Event 2 | -11/Junkyard | Met Revision 17 59 | -11/Junkyard | Discovered new exit (range 8) 80 | -11/Junkyard | Entered Materials 172 | -10/Materials | Met 8R-AWN 239 | -10/Materials | Discovered new exit (range 8) 240 | -10/Materials | Discovered new exit (range 16) 259 | -10/Materials | Entered Mines 260 | -10/Mines | Followed 8R-AWN into the Mines 270 | -10/Mines | Discovered new exit (range 5) 316 | -10/Mines | Build established: Mutant 347 | -10/Mines | Discovered new exit (range 5) 352 | -10/Mines | Entered Exiles 386 | -10/Exiles | Welcomed by 8R-AWN 404 | -10/Exiles | Met EX-HEX 456 | -10/Exiles | Met EX-DEC 476 | -10/Exiles | Learned location of Zion (-7) 523 | -10/Exiles | Discovered new exit (range 10) 529 | -10/Exiles | Entered Mines 587 | -9/Mines | A weapon hastily lodged in a ceiling crevice suddenly fell to the ground 769 | -9/Mines | Discovered new exit (range 6) 783 | -9/Mines | Entered Materials 783 | -8/Materials | Accompanied by 2 allies 783 | -8/Materials | Evolved 4 slots: Power x1, Propulsion x1, Utility x1, Weapon x1 788 | -8/Materials | Led the pair of lost Derelicts to an unsafe place 1101 | -8/Materials | Build established: Tank 1500 | -8/Materials | Build established: Scavenger-Gunner 1591 | -8/Materials | Discovered new exit (range 16) 1617 | -8/Materials | Entered Factory 1617 | -7/Factory | Evolved 2 slots: Power x1, Utility x1 1863 | -7/Factory | Build established: Gunner 2202 | -7/Factory | Discovered new exit (range 12) 2219 | -7/Factory | Entered Lower Caves 2721 | -7/Lower Caves | Self-destructed Last Messages --------------- malfunctions. Acquired 31 matter. Corrupted Hvy. Laser self-destruct mechanism malfunctions. Lgt. Nuclear Core melted. G-47 Trooper destroyed. G-47 Trooper misfires. Lgt. Nuclear Core destroyed. Critical hit (Burn: +37). Lgt. Nuclear Core fried. G-47 Trooper destroyed. Particle Gun fries itself beyond repair. Corrupted Aluminum Leg self-destruct mechanism malfunctions. System corrupted: Heat flow error (+174). System corrupted: Matter fused (-6). VXWE&VRMU